[Event "FIDE Open World Rapid 2024"]
[Site "New York"]
[Date "2024.12.28"]
[Round "9.10"]
[White "Bezold, Michael"]
[Black "Tsaruk, Maksim"]
[Result "1/2-1/2"]
[ECO "A01"]
[WhiteElo "2469"]
[BlackElo "2424"]
[Annotator "ChessBase"]
[PlyCount "99"]
[EventDate "2024.12.14"]
[EventType "swiss"]
[EventCountry "USA"]
[SourceTitle "playchess.com"]
[Source "ChessBase"]
[SourceQuality "1"]
[TimeControl "900+10"]

1. c4 {[%emt 0:00:01]} f5 {[%emt 0:00:01]} 2. b3 {[%emt 0:00:04]} e5 {[%emt 0:02:00]} 3. Bb2 {[%emt 0:00:02]} Nc6 {[%emt 0:00:02]} 4. e3 {[%emt 0:00:05]} Nf6 {[%emt 0:00:10]} 5. a3 {[%emt 0:00:20]} a5 {[%emt 0:00:28]} 6. d3 {[%emt 0:01:10]} Be7 {[%emt 0:00:06]} 7. Nf3 {[%emt 0:00:04]} d6 {[%emt 0:00:02]} 8. Be2 {[%emt 0:00:01]} O-O {[%emt 0:00:03]} 9. O-O {[%emt 0:00:03]} Qe8 {[%emt 0:00:44]} 10. Nc3 {[%emt 0:00:33]} Nd8 {[%emt 0:00:09]} 11. Re1 {[%emt 0:00:15]} Ne6 {[%emt 0:01:21]} 12. Bf1 {[%emt 0:00:49]} b6 {[%emt 0:05:16]} 13. g3 {[%emt 0:02:10]} Bb7 {[%emt 0:00:50]} 14. Bg2 {[%emt 0:00:04]} e4 {[%emt 0:01:39]} 15. Nd4 {[%emt 0:03:04]} Nc5 {[%emt 0:00:01]} 16. dxe4 {[%emt 0:03:09]} fxe4 {[%emt 0:00:02]} 17. Ndb5 {[%emt 0:01:06]} Qd7 {[%emt 0:00:20]} 18. Qc2 {[%emt 0:00:23]} Ng4 {[%emt 0:01:09]} 19. Re2 {[%emt 0:00:02]} Bg5 {[%emt 0:00:43]} 20. Nxe4 {[%emt 0:00:38]} Bxe4 {[%emt 0:02:57]} 21. Bxe4 {[%emt 0:00:01]} Nxe4 {[%emt 0:00:02]} 22. Qxe4 {[%emt 0:00:02]} Kh8 {[%emt 0:00:30]} 23. h3 {[%emt 0:01:03]} Nf6 {[%emt 0:00:06]} 24. Qg2 {[%emt 0:00:07]} Rae8 {[%emt 0:00:14]} 25. h4 {[%emt 0:01:13]} Bh6 {[%emt 0:00:01]} 26. Bxf6 {[%emt 0:00:02]} Rxf6 {[%emt 0:00:02]} 27. Rd1 {[%emt 0:00:27]} Qg4 {[%emt 0:00:10]} 28. Rdd2 {[%emt 0:00:32]} Rf7 {[%emt 0:00:26]} 29. a4 {[%emt 0:00:20]} g6 {[%emt 0:00:14]} 30. Kh2 {[%emt 0:00:19]} Bg7 {[%emt 0:00:07]} 31. Qh3 {[%emt 0:01:06]} Qf3 {[%emt 0:00:04]} 32. Qg2 {[%emt 0:00:01]} Qg4 {[%emt 0:00:00]} 33. Qh3 {[%emt 0:00:34]} Qf3 {[%emt 0:00:01]} 34. Qg2 {[%emt 0:00:01]} Qg4 {[%emt 0:00:06]} 35. Re1 {[%emt 0:00:21]} g5 {[%emt 0:00:32]} 36. hxg5 {[%emt 0:00:14]} Qxg5 {[%emt 0:00:01]} 37. Nd4 {[%emt 0:00:13]} Qg4 {[%emt 0:00:11]} 38. Rf1 {[%emt 0:00:28]} Re5 {[%emt 0:00:14]} 39. Ne2 {[%emt 0:00:10]} Bh6 {[%emt 0:00:25]} 40. Nf4 {[%emt 0:00:10]} Bxf4 {[%emt 0:00:02]} 41. exf4 {[%emt 0:00:01]} Rxf4 {[%emt 0:00:09]} 42. Rd5 {[%emt 0:00:21]} Qh5+ {[%emt 0:00:16]} 43. Kg1 {[%emt 0:00:01]} Rxd5 {[%emt 0:00:00]} 44. cxd5 {[%emt 0:00:02]} Rd4 {[%emt 0:00:01]} 45. Re1 {[%emt 0:00:17]} Rd1 {[%emt 0:00:25]} 46. Qf1 {[%emt 0:00:07]} Rxe1 {[%emt 0:00:02]} 47. Qxe1 {[%emt 0:00:01]} Qxd5 {[%emt 0:00:01]} 48. Qc3+ {[%emt 0:00:03]} Kg8 {[%emt 0:00:05]} 49. Qxc7 {[%emt 0:00:03]} Qxb3 {[%emt 0:00:02]} 50. Qxd6 {[%emt 0:00:04]} 1/2-1/2

[Event "FIDE Open World Rapid 2024"]
[Site "New York"]
[Date "2024.12.27"]
[Round "9.11"]
[White "Bu, Xiangzhi"]
[Black "Robson, Ray"]
[Result "1/2-1/2"]
[ECO "D38"]
[WhiteElo "2684"]
[BlackElo "2700"]
[Annotator "ChessBase"]
[PlyCount "126"]
[EventDate "2024.12.14"]
[EventType "swiss"]
[EventCountry "USA"]
[SourceTitle "playchess.com"]
[Source "ChessBase"]
[SourceQuality "1"]
[TimeControl "900+10"]

1. d4 {[%emt 0:00:02]} Nf6 {[%emt 0:00:03]} 2. c4 {[%emt 0:00:02]} e6 {[%emt 0:00:03]} 3. Nf3 {[%emt 0:00:03]} d5 {[%emt 0:00:05]} 4. Nc3 {[%emt 0:00:02]} Bb4 {[%emt 0:00:08]} 5. Bg5 {[%emt 0:00:05]} h6 {[%emt 0:00:05]} 6. Bxf6 {[%emt 0:00:03]} Qxf6 {[%emt 0:00:04]} 7. Qa4+ {[%emt 0:00:18]} Nc6 {[%emt 0:00:04]} 8. e3 {[%emt 0:00:01]} O-O {[%emt 0:00:25]} 9. Be2 {[%emt 0:00:07]} Bd7 {[%emt 0:01:54]} 10. Qb3 {[%emt 0:00:06]} dxc4 {[%emt 0:01:34]} 11. Qxc4 {[%emt 0:00:04]} Qe7 {[%emt 0:02:38]} 12. O-O {[%emt 0:00:31]} Na5 {[%emt 0:00:41]} 13. Qd3 {[%emt 0:00:16]} c5 {[%emt 0:01:11]} 14. dxc5 {[%emt 0:00:48]} Bxc5 {[%emt 0:00:44]} 15. Ne5 {[%emt 0:00:17]} Rfd8 {[%emt 0:00:41]} 16. Nxd7 {[%emt 0:00:09]} Rxd7 {[%emt 0:00:13]} 17. Qb5 {[%emt 0:00:19]} Nc6 {[%emt 0:00:42]} 18. Ne4 {[%emt 0:01:46]} Bb6 {[%emt 0:00:17]} 19. Rfd1 {[%emt 0:00:12]} Rad8 {[%emt 0:00:17]} 20. g3 {[%emt 0:00:13]} Rxd1+ {[%emt 0:01:59]} 21. Rxd1 {[%emt 0:00:05]} Rxd1+ {[%emt 0:00:17]} 22. Bxd1 {[%emt 0:00:01]} Qb4 {[%emt 0:00:53]} 23. Qxb4 {[%emt 0:00:09]} Nxb4 {[%emt 0:00:01]} 24. a3 {[%emt 0:00:22]} Nd3 {[%emt 0:00:24]} 25. b4 {[%emt 0:00:08]} a5 {[%emt 0:01:32]} 26. Be2 {[%emt 0:01:03]} Ne5 {[%emt 0:00:08]} 27. Nd6 {[%emt 0:00:23]} axb4 {[%emt 0:00:19]} 28. axb4 {[%emt 0:00:01]} Nc6 {[%emt 0:00:08]} 29. b5 {[%emt 0:00:04]} Nd8 {[%emt 0:00:13]} 30. Bf3 {[%emt 0:00:01]} Bc5 {[%emt 0:00:10]} 31. Nxb7 {[%emt 0:00:02]} Nxb7 {[%emt 0:00:02]} 32. Bxb7 {[%emt 0:00:01]} g5 {[%emt 0:00:35]} 33. Kg2 {[%emt 0:00:32]} f5 {[%emt 0:00:44]} 34. h3 {[%emt 0:00:46]} Kf7 {[%emt 0:00:11]} 35. g4 {[%emt 0:00:28]} Kf6 {[%emt 0:00:11]} 36. Kf3 {[%emt 0:00:03]} Ke5 {[%emt 0:00:28]} 37. Bc8 {[%emt 0:00:06]} Bb6 {[%emt 0:00:14]} 38. Ke2 {[%emt 0:00:07]} Bc5 {[%emt 0:00:17]} 39. Kd3 {[%emt 0:00:10]} Bb6 {[%emt 0:00:07]} 40. Kc4 {[%emt 0:00:17]} Ba7 {[%emt 0:00:10]} 41. Kb4 {[%emt 0:03:34]} Bb6 {[%emt 0:00:03]} 42. Bd7 {[%emt 0:00:01]} Kf6 {[%emt 0:00:22]} 43. Bc6 {[%emt 0:01:36]} Ke5 {[%emt 0:00:06]} 44. Bb7 {[%emt 0:00:02]} Kd6 {[%emt 0:00:30]} 45. Bg2 {[%emt 0:00:10]} Ke5 {[%emt 0:00:05]} 46. Bf1 {[%emt 0:00:02]} Kd6 {[%emt 0:00:13]} 47. Bc4 {[%emt 0:01:36]} Ke5 {[%emt 0:00:08]} 48. Bb3 {[%emt 0:00:01]} Kd6 {[%emt 0:00:13]} 49. Kc4 {[%emt 0:00:06]} Ke5 {[%emt 0:00:08]} 50. Kd3 {[%emt 0:00:02]} Ba7 {[%emt 0:00:19]} 51. Ke2 {[%emt 0:00:17]} Bb6 {[%emt 0:00:07]} 52. Kf3 {[%emt 0:00:05]} Bc7 {[%emt 0:00:20]} 53. Bc2 {[%emt 0:00:08]} Bb6 {[%emt 0:00:08]} 54. Kg3 {[%emt 0:00:25]} Kf6 {[%emt 0:00:16]} 55. gxf5 {[%emt 0:00:32]} exf5 {[%emt 0:00:03]} 56. e4 {[%emt 0:00:01]} fxe4 {[%emt 0:00:14]} 57. Bxe4 {[%emt 0:00:01]} h5 {[%emt 0:00:20]} 58. Bf3 {[%emt 0:00:20]} h4+ {[%emt 0:00:06]} 59. Kg2 {[%emt 0:00:01]} Ke5 {[%emt 0:00:06]} 60. Bg4 {[%emt 0:00:03]} Kd6 {[%emt 0:00:06]} 61. Kf3 {[%emt 0:00:02]} Kc5 {[%emt 0:00:13]} 62. Bd7 {[%emt 0:00:01]} Bc7 {[%emt 0:00:02]} 63. Kg4 {[%emt 0:00:04]} Bf4 {[%emt 0:00:03]} 1/2-1/2

[Event "FIDE Open World Rapid 2024"]
[Site "New York"]
[Date "2024.12.28"]
[Round "9.11"]
[White "Moradiabadi, Elshan"]
[Black "Matviishen, Viktor"]
[Result "1-0"]
[ECO "D37"]
[WhiteElo "2512"]
[BlackElo "2566"]
[Annotator "ChessBase"]
[PlyCount "107"]
[EventDate "2024.12.14"]
[EventType "swiss"]
[EventCountry "USA"]
[SourceTitle "playchess.com"]
[Source "ChessBase"]
[SourceQuality "1"]
[TimeControl "900+10"]

1. d4 {[%emt 0:00:01]} Nf6 {[%emt 0:00:01]} 2. Nf3 {[%emt 0:00:00]} e6 {[%emt 0:00:03]} 3. c4 {[%emt 0:00:03]} d5 {[%emt 0:00:05]} 4. Nc3 {[%emt 0:00:11]} Be7 {[%emt 0:00:03]} 5. Bf4 {[%emt 0:00:08]} O-O {[%emt 0:00:11]} 6. Rc1 {[%emt 0:00:16]} a6 {[%emt 0:00:26]} 7. e3 {[%emt 0:00:52]} dxc4 {[%emt 0:00:11]} 8. Bxc4 {[%emt 0:00:01]} b5 {[%emt 0:00:01]} 9. Bd3 {[%emt 0:00:04]} Bb7 {[%emt 0:00:19]} 10. Qc2 {[%emt 0:00:20]} Nbd7 {[%emt 0:01:27]} 11. a4 {[%emt 0:04:47]} c5 {[%emt 0:00:54]} 12. axb5 {[%emt 0:00:08]} Bxf3 {[%emt 0:00:46]} 13. gxf3 {[%emt 0:00:01]} cxd4 {[%emt 0:00:01]} 14. exd4 {[%emt 0:00:05]} axb5 {[%emt 0:00:02]} 15. Nxb5 {[%emt 0:00:38]} g6 {[%emt 0:04:21]} 16. O-O {[%emt 0:01:25]} Nd5 {[%emt 0:00:05]} 17. Bg3 {[%emt 0:00:37]} Bg5 {[%emt 0:00:26]} 18. Ra1 {[%emt 0:00:02]} Rc8 {[%emt 0:00:03]} 19. Qb3 {[%emt 0:00:16]} h5 {[%emt 0:00:05]} 20. Be4 {[%emt 0:02:13]} Nf4 {[%emt 0:01:15]} 21. Kh1 {[%emt 0:00:42]} Qf6 {[%emt 0:04:31]} 22. Ra7 {[%emt 0:01:03]} Rfd8 {[%emt 0:00:10]} 23. Nd6 {[%emt 0:00:31]} Rb8 {[%emt 0:00:03]} 24. Qa4 {[%emt 0:00:01]} Nb6 {[%emt 0:01:05]} 25. Qc6 {[%emt 0:00:01]} Rf8 {[%emt 0:00:46]} 26. b4 {[%emt 0:01:39]} h4 {[%emt 0:00:46]} 27. Bxf4 {[%emt 0:00:01]} Bxf4 {[%emt 0:00:01]} 28. Rg1 {[%emt 0:00:39]} g5 {[%emt 0:00:22]} 29. Nb5 {[%emt 0:01:07]} Rfc8 {[%emt 0:00:18]} 30. Nc7 {[%emt 0:00:01]} Qxd4 {[%emt 0:00:34]} 31. Nxe6 {[%emt 0:00:45]} Rxc6 {[%emt 0:00:27]} 32. Nxd4 {[%emt 0:00:01]} Rd6 {[%emt 0:00:26]} 33. Ne2 {[%emt 0:00:23]} Bd2 {[%emt 0:00:03]} 34. f4 {[%emt 0:00:06]} f6 {[%emt 0:00:03]} 35. b5 {[%emt 0:00:19]} Re8 {[%emt 0:00:05]} 36. Bf3 {[%emt 0:00:15]} Kf8 {[%emt 0:00:18]} 37. fxg5 {[%emt 0:00:02]} fxg5 {[%emt 0:00:02]} 38. Rd1 {[%emt 0:00:45]} Nc4 {[%emt 0:00:04]} 39. Bh5 {[%emt 0:00:18]} Re7 {[%emt 0:00:13]} 40. Rxe7 {[%emt 0:00:07]} Kxe7 {[%emt 0:00:01]} 41. Ng1 {[%emt 0:00:02]} Nb2 {[%emt 0:00:28]} 42. Rb1 {[%emt 0:00:23]} Bc3 {[%emt 0:00:01]} 43. Be2 {[%emt 0:00:06]} Rd2 {[%emt 0:00:13]} 44. b6 {[%emt 0:00:07]} Kd6 {[%emt 0:00:03]} 45. b7 {[%emt 0:00:09]} Kc7 {[%emt 0:00:02]} 46. Rc1 {[%emt 0:00:02]} Kxb7 {[%emt 0:00:27]} 47. Rxc3 {[%emt 0:00:01]} Na4 {[%emt 0:00:06]} 48. Re3 {[%emt 0:00:13]} Kc7 {[%emt 0:00:13]} 49. Nf3 {[%emt 0:00:07]} Rd5 {[%emt 0:00:01]} 50. Re5 {[%emt 0:00:07]} Rxe5 {[%emt 0:00:04]} 51. Nxe5 {[%emt 0:00:01]} Nc3 {[%emt 0:00:01]} 52. Bg4 {[%emt 0:00:12]} Ne4 {[%emt 0:00:07]} 53. Kg2 {[%emt 0:00:02]} Kd6 {[%emt 0:00:04]} 54. Nf3 {[%emt 0:00:03]} 1-0

[Event "FIDE Open World Rapid 2024"]
[Site "New York"]
[Date "2024.12.27"]
[Round "9.12"]
[White "Lazavik, Denis"]
[Black "Lu, Shanglei"]
[Result "1-0"]
[ECO "E24"]
[WhiteElo "2578"]
[BlackElo "2609"]
[Annotator "ChessBase"]
[PlyCount "31"]
[EventDate "2024.12.14"]
[EventType "swiss"]
[EventCountry "USA"]
[SourceTitle "playchess.com"]
[Source "ChessBase"]
[SourceQuality "1"]
[TimeControl "900+10"]

1. d4 {[%emt 0:00:03]} Nf6 {[%emt 0:00:01]} 2. c4 {[%emt 0:00:05]} e6 {[%emt 0:00:01]} 3. Nc3 {[%emt 0:00:05]} Bb4 {[%emt 0:00:02]} 4. a3 {[%emt 0:00:01]} Bxc3+ {[%emt 0:00:02]} 5. bxc3 {[%emt 0:00:02]} c5 {[%emt 0:00:05]} 6. f3 {[%emt 0:00:03]} Nc6 {[%emt 0:01:01]} 7. e4 {[%emt 0:00:03]} O-O {[%emt 0:00:13]} 8. e5 {[%emt 0:00:16]} Ne8 {[%emt 0:00:06]} 9. f4 {[%emt 0:00:02]} f6 {[%emt 0:05:05]} 10. Nf3 {[%emt 0:00:29]} fxe5 {[%emt 0:00:05]} 11. dxe5 {[%emt 0:00:42]} d6 {[%emt 0:00:27]} 12. Bd3 {[%emt 0:00:50]} dxe5 {[%emt 0:01:19]} 13. fxe5 {[%emt 0:00:08]} Qc7 {[%emt 0:00:41]} 14. Qe2 {[%emt 0:01:23]} Rxf3 {[%emt 0:01:02]} 15. Qxf3 {[%emt 0:00:45]} Nxe5 {[%emt 0:00:34]} 16. Bxh7+ {[%emt 0:00:19]} 1-0

[Event "FIDE Open World Rapid 2024"]
[Site "New York"]
[Date "2024.12.28"]
[Round "9.12"]
[White "Damjanovic, Vuk"]
[Black "Ghaem Maghami, Ehsan"]
[Result "1-0"]
[ECO "D41"]
[WhiteElo "2368"]
[BlackElo "2434"]
[Annotator "ChessBase"]
[PlyCount "65"]
[EventDate "2024.12.14"]
[EventType "swiss"]
[EventCountry "USA"]
[SourceTitle "playchess.com"]
[Source "ChessBase"]
[SourceQuality "1"]
[TimeControl "900+10"]

1. Nf3 {[%emt 0:00:18]} c5 {[%emt 0:00:10]} 2. c4 {[%emt 0:00:07]} Nf6 {[%emt 0:00:05]} 3. Nc3 {[%emt 0:00:03]} d5 {[%emt 0:00:15]} 4. cxd5 {[%emt 0:00:25]} Nxd5 {[%emt 0:00:02]} 5. e3 {[%emt 0:00:48]} Nc6 {[%emt 0:00:20]} 6. Bc4 {[%emt 0:01:03]} e6 {[%emt 0:02:34]} 7. O-O {[%emt 0:00:25]} Be7 {[%emt 0:00:12]} 8. d4 {[%emt 0:02:22]} cxd4 {[%emt 0:00:19]} 9. exd4 {[%emt 0:00:02]} O-O {[%emt 0:00:05]} 10. Re1 {[%emt 0:01:11]} Bf6 {[%emt 0:00:33]} 11. Ne4 {[%emt 0:00:29]} b6 {[%emt 0:00:42]} 12. Nxf6+ {[%emt 0:00:42]} Nxf6 {[%emt 0:00:14]} 13. Bg5 {[%emt 0:00:12]} Bb7 {[%emt 0:00:03]} 14. Rc1 {[%emt 0:01:20]} h6 {[%emt 0:00:58]} 15. Bh4 {[%emt 0:00:18]} Rc8 {[%emt 0:01:21]} 16. Bb3 {[%emt 0:01:12]} Ne7 {[%emt 0:03:48]} 17. Rxc8 {[%emt 0:00:49]} Nxc8 {[%emt 0:00:24]} 18. Ne5 {[%emt 0:00:21]} Nd6 {[%emt 0:00:04]} 19. d5 {[%emt 0:02:12]} exd5 {[%emt 0:03:13]} 20. Bxf6 {[%emt 0:00:48]} gxf6 {[%emt 0:00:01]} 21. Ng4 {[%emt 0:01:38]} f5 {[%emt 0:00:14]} 22. Ne3 {[%emt 0:00:30]} Re8 {[%emt 0:01:09]} 23. Bxd5 {[%emt 0:00:19]} f4 {[%emt 0:00:43]} 24. Nc2 {[%emt 0:00:40]} Bxd5 {[%emt 0:00:56]} 25. Qxd5 {[%emt 0:00:03]} Rxe1+ {[%emt 0:00:05]} 26. Nxe1 {[%emt 0:00:02]} Qf6 {[%emt 0:00:01]} 27. Nd3 {[%emt 0:00:25]} Kg7 {[%emt 0:00:07]} 28. Qf3 {[%emt 0:00:26]} Nc4 {[%emt 0:00:08]} 29. Nxf4 {[%emt 0:00:28]} Qd4 {[%emt 0:00:47]} 30. Qg4+ {[%emt 0:00:16]} Kf8 {[%emt 0:00:04]} 31. Qc8+ {[%emt 0:00:01]} Kg7 {[%emt 0:00:13]} 32. Qg4+ {[%emt 0:00:02]} Kf8 {[%emt 0:00:02]} 33. Ne6+ {[%emt 0:00:02]} 1-0

[Event "FIDE Open World Rapid 2024"]
[Site "New York"]
[Date "2024.12.27"]
[Round "9.13"]
[White "Muradli, Mahammad"]
[Black "Deac, Bogdan-Daniel"]
[Result "1/2-1/2"]
[ECO "A14"]
[WhiteElo "2588"]
[BlackElo "2696"]
[Annotator "ChessBase"]
[PlyCount "80"]
[EventDate "2024.12.14"]
[EventType "swiss"]
[EventCountry "USA"]
[SourceTitle "playchess.com"]
[Source "ChessBase"]
[SourceQuality "1"]
[TimeControl "900+10"]

1. Nf3 {[%emt 0:00:02]} d5 {[%emt 0:00:01]} 2. c4 {[%emt 0:00:02]} e6 {[%emt 0:00:02]} 3. g3 {[%emt 0:00:02]} Nf6 {[%emt 0:00:03]} 4. Bg2 {[%emt 0:00:03]} Be7 {[%emt 0:00:02]} 5. O-O {[%emt 0:00:02]} O-O {[%emt 0:00:03]} 6. b3 {[%emt 0:00:02]} c5 {[%emt 0:00:23]} 7. Bb2 {[%emt 0:01:35]} Nc6 {[%emt 0:00:03]} 8. cxd5 {[%emt 0:00:35]} Nxd5 {[%emt 0:00:02]} 9. d4 {[%emt 0:00:03]} cxd4 {[%emt 0:00:26]} 10. Nxd4 {[%emt 0:00:04]} Nxd4 {[%emt 0:00:44]} 11. Qxd4 {[%emt 0:00:25]} Bf6 {[%emt 0:00:02]} 12. Qd2 {[%emt 0:00:01]} Nf4 {[%emt 0:00:10]} 13. gxf4 {[%emt 0:00:09]} Qxd2 {[%emt 0:00:02]} 14. Nxd2 {[%emt 0:00:02]} Bxb2 {[%emt 0:00:02]} 15. Rab1 {[%emt 0:00:47]} Bf6 {[%emt 0:01:03]} 16. Rbc1 {[%emt 0:01:34]} Rd8 {[%emt 0:04:31]} 17. Ne4 {[%emt 0:00:46]} Be7 {[%emt 0:00:17]} 18. Rc7 {[%emt 0:01:26]} Rd7 {[%emt 0:00:06]} 19. Rc2 {[%emt 0:02:07]} Rd8 {[%emt 0:00:30]} 20. Rc7 {[%emt 0:01:43]} Rd7 {[%emt 0:00:11]} 21. Rc2 {[%emt 0:00:03]} Rd8 {[%emt 0:00:01]} 22. Bf3 {[%emt 0:00:02]} Rb8 {[%emt 0:00:44]} 23. Rc7 {[%emt 0:01:35]} Rd7 {[%emt 0:00:50]} 24. Rfc1 {[%emt 0:00:02]} Rxc7 {[%emt 0:00:12]} 25. Rxc7 {[%emt 0:00:01]} Bd8 {[%emt 0:00:39]} 26. Rc4 {[%emt 0:01:09]} Be7 {[%emt 0:00:03]} 27. Rc7 {[%emt 0:01:20]} Bd8 {[%emt 0:00:05]} 28. Rc2 {[%emt 0:00:18]} Be7 {[%emt 0:00:02]} 29. Nc5 {[%emt 0:00:01]} Kf8 {[%emt 0:01:35]} 30. e3 {[%emt 0:02:43]} Ke8 {[%emt 0:01:17]} 31. a4 {[%emt 0:00:47]} Kd8 {[%emt 0:02:13]} 32. Nd3 {[%emt 0:00:14]} f6 {[%emt 0:00:20]} 33. Kg2 {[%emt 0:00:28]} Bd7 {[%emt 0:01:57]} 34. Be4 {[%emt 0:00:20]} h6 {[%emt 0:00:33]} 35. a5 {[%emt 0:00:03]} g5 {[%emt 0:00:52]} 36. Rd2 {[%emt 0:00:19]} Kc7 {[%emt 0:00:20]} 37. Rc2+ {[%emt 0:00:01]} Kd8 {[%emt 0:00:02]} 38. Rd2 {[%emt 0:00:02]} Kc7 {[%emt 0:00:37]} 39. Rc2+ {[%emt 0:00:01]} Kd8 {[%emt 0:00:02]} 40. Rd2 {[%emt 0:00:03]} Kc7 {[%emt 0:00:22]} 1/2-1/2

[Event "FIDE Open World Rapid 2024"]
[Site "New York"]
[Date "2024.12.28"]
[Round "9.13"]
[White "Mamedov, Edgar"]
[Black "Corrales Jimenez, Fidel"]
[Result "1/2-1/2"]
[ECO "C55"]
[WhiteElo "2441"]
[BlackElo "2555"]
[Annotator "ChessBase"]
[PlyCount "107"]
[EventDate "2024.12.14"]
[EventType "swiss"]
[EventCountry "USA"]
[SourceTitle "playchess.com"]
[Source "ChessBase"]
[SourceQuality "1"]
[TimeControl "900+10"]

1. e4 {[%emt 0:00:03]} e5 {[%emt 0:00:01]} 2. Nf3 {[%emt 0:00:03]} Nc6 {[%emt 0:00:02]} 3. Bc4 {[%emt 0:00:06]} Nf6 {[%emt 0:00:12]} 4. d3 {[%emt 0:00:02]} Be7 {[%emt 0:00:04]} 5. Nc3 {[%emt 0:00:03]} d6 {[%emt 0:00:23]} 6. a3 {[%emt 0:00:01]} O-O {[%emt 0:00:08]} 7. Be3 {[%emt 0:00:02]} Be6 {[%emt 0:03:06]} 8. Ng5 {[%emt 0:00:03]} Bxc4 {[%emt 0:01:44]} 9. dxc4 {[%emt 0:00:06]} Qd7 {[%emt 0:00:10]} 10. h3 {[%emt 0:00:11]} Nd8 {[%emt 0:00:28]} 11. Qe2 {[%emt 0:00:15]} Ne6 {[%emt 0:00:23]} 12. O-O-O {[%emt 0:00:09]} Qc6 {[%emt 0:00:33]} 13. Nd5 {[%emt 0:00:35]} Rfe8 {[%emt 0:00:12]} 14. h4 {[%emt 0:00:19]} a6 {[%emt 0:00:33]} 15. g4 {[%emt 0:00:36]} b5 {[%emt 0:00:43]} 16. cxb5 {[%emt 0:00:02]} axb5 {[%emt 0:00:13]} 17. Nxe6 {[%emt 0:01:28]} fxe6 {[%emt 0:00:03]} 18. Nxf6+ {[%emt 0:00:03]} Bxf6 {[%emt 0:00:03]} 19. g5 {[%emt 0:00:02]} Be7 {[%emt 0:00:03]} 20. Qg4 {[%emt 0:00:14]} d5 {[%emt 0:01:38]} 21. g6 {[%emt 0:00:29]} h6 {[%emt 0:00:34]} 22. Qf3 {[%emt 0:01:20]} Rf8 {[%emt 0:00:21]} 23. exd5 {[%emt 0:00:01]} Qc4 {[%emt 0:00:07]} 24. Qh3 {[%emt 0:00:04]} Ra6 {[%emt 0:00:55]} 25. Qf1 {[%emt 0:01:29]} exd5 {[%emt 0:02:12]} 26. Qxc4 {[%emt 0:00:03]} dxc4 {[%emt 0:00:15]} 27. Rd7 {[%emt 0:00:24]} Bd6 {[%emt 0:00:11]} 28. c3 {[%emt 0:00:15]} b4 {[%emt 0:02:48]} 29. cxb4 {[%emt 0:00:06]} Bxb4 {[%emt 0:00:02]} 30. Rxc7 {[%emt 0:00:42]} c3 {[%emt 0:00:32]} 31. Kc2 {[%emt 0:01:09]} Ba5 {[%emt 0:00:08]} 32. Ra7 {[%emt 0:00:57]} Rxa7 {[%emt 0:00:03]} 33. Bxa7 {[%emt 0:00:01]} cxb2 {[%emt 0:00:04]} 34. Kxb2 {[%emt 0:00:02]} Rf6 {[%emt 0:01:07]} 35. h5 {[%emt 0:00:07]} Kf8 {[%emt 0:00:09]} 36. Kb3 {[%emt 0:00:27]} Ke7 {[%emt 0:00:22]} 37. Ka4 {[%emt 0:00:14]} Bb6 {[%emt 0:00:20]} 38. Bxb6 {[%emt 0:00:43]} Rxb6 {[%emt 0:00:01]} 39. Rc1 {[%emt 0:00:17]} Kf6 {[%emt 0:00:21]} 40. Rc7 {[%emt 0:02:48]} Kg5 {[%emt 0:00:02]} 41. Rxg7 {[%emt 0:00:01]} Kxh5 {[%emt 0:00:01]} 42. Re7 {[%emt 0:00:01]} Kxg6 {[%emt 0:00:29]} 43. Rxe5 {[%emt 0:00:02]} h5 {[%emt 0:00:15]} 44. f4 {[%emt 0:01:38]} Rf6 {[%emt 0:00:07]} 45. Rg5+ {[%emt 0:00:06]} Kh6 {[%emt 0:00:02]} 46. Kb5 {[%emt 0:00:01]} Rxf4 {[%emt 0:00:04]} 47. Rc5 {[%emt 0:00:05]} h4 {[%emt 0:00:08]} 48. a4 {[%emt 0:00:04]} h3 {[%emt 0:00:07]} 49. a5 {[%emt 0:00:01]} h2 {[%emt 0:00:15]} 50. Rc1 {[%emt 0:00:01]} Kg5 {[%emt 0:00:11]} 51. a6 {[%emt 0:00:14]} Rf2 {[%emt 0:00:21]} 52. a7 {[%emt 0:00:54]} Ra2 {[%emt 0:00:08]} 53. Rh1 {[%emt 0:00:35]} Rxa7 {[%emt 0:00:03]} 54. Rxh2 {[%emt 0:00:01]} 1/2-1/2